bitfinex/quotes_SOLUSD_20250406
["timestamp","ask_amount","ask_price","bid_price","bid_amount"]
[1743980982598,0.063,105.31,105.27,70.46482632]
[1743980982859,0.063,105.31,105.29,70.46482632]
[1743980983176,0.063,105.31,105.3,140.92965264]
[1743980983372,0.063,105.31,105.3,70.46482632]
[1743980983668,0.0001,105.31,105.3,140.92965264]
[1743980983869,0.0001,105.31,105.27,0.42648471]
[1743980984076,0.0001,105.31,105.3,70.46482632]
[1743980984230,0.0001,105.31,105.25,33.254]
[1743980984576,70.46482632,105.3,105.21,9.5047]
[1743980984876,95.82543959,105.29,105.24,70.46482632]
[1743980985040,95.82543959,105.29,105.21,9.5047]
[1743980985375,25.36061327,105.29,105.25,70.46482632]
[1743980985543,25.36061327,105.29,105.24,70.46482632]
[1743980985738,6.71096441,105.28,105.25,70.46482632]
[1743980986063,6.71096441,105.28,105.27,70.46482632]
[1743980986239,6.71096441,105.28,105.26,70.46482632]
[1743980986468,6.71096441,105.28,105.27,70.46482632]
[1743980986700,6.71096441,105.3,105.26,9.4995]
[1743980986995,6.71096441,105.3,105.25,70.46482632]
[1743980987204,6.71096441,105.3,105.26,70.46482632]
[1743980987572,18.64964886,105.3,105.25,70.46482632]
[1743980987973,89.11447518,105.3,105.25,70.46482632]
[1743980988189,18.64964886,105.28,105.22,9.5038]
[1743980988368,18.64964886,105.28,105.24,70.46482632]
[1743980988574,70.46482632,105.28,105.23,70.46482632]
[1743980988778,16.21311159,105.29,105.22,70.46482632]
[1743980988779,70.46482632,105.27,105.22,70.46482632]
[1743980989087,89.11447518,105.28,105.19,33.2731]
[1743980989286,18.64964886,105.27,105.19,33.2731]
[1743980989467,18.64964886,105.28,105.24,70.46482632]
[1743980989795,151.66492632,105.31,105.26,70.46482632]
[1743980990131,18.64964886,105.28,105.21,0.03]
[1743980990301,115.11447518,105.28,105.21,0.03]
[1743980990464,115.11447518,105.28,105.23,70.46482632]
[1743980990670,22.50359272,105.3,105.25,70.46482632]
[1743980990896,22.50359272,105.3,105.27,70.46482632]
[1743980991069,6.72359272,105.3,105.23,33.2603]
[1743980991272,70.46482632,105.29,105.21,23.7913]
[1743980991495,18.64964886,105.29,105.23,70.46482632]
[1743980991702,18.64964886,105.29,105.24,70.46482632]
[1743980991878,89.11447518,105.29,105.21,9.5344]
[1743980992086,18.64964886,105.29,105.24,70.46482632]
[1743980992380,89.11447518,105.29,105.24,70.46482632]
[1743980993088,70.46482632,105.28,105.21,0.03]
[1743980993384,70.46482632,105.28,105.23,70.46482632]
[1743980993589,89.11447518,105.29,105.24,70.46482632]
[1743980993806,18.64964886,105.27,105.21,0.03]
[1743980994008,89.11447518,105.27,105.22,70.46482632]
[1743980994211,18.64964886,105.27,105.21,70.49482632]
[1743980994409,70.46482632,105.26,105.21,70.49482632]
[1743980994880,70.46482632,105.24,105.21,0.03]
[1743980995087,70.46482632,105.22,105.21,0.03]
[1743980995614,89.11447518,105.22,105.21,0.03]
[1743980996093,89.54095989,105.22,105.21,0.03]
[1743980996818,9.5075,105.18,105.15,0.03]
[1743980996982,70.46482632,105.16,105.15,0.03]
[1743980997184,89.11447518,105.16,105.15,0.03]
[1743980997415,170.74095989,105.16,105.15,0.03]
[1743980997926,170.31447518,105.16,105.15,0.03]
[1743980998125,86.16482632,105.17,105.15,0.03]
[1743980998417,15.7,105.17,105.15,0.03]
[1743980998585,81.2,105.21,105.15,0.03]
[1743980998586,81.2,105.21,105.15,70.49482632]
[1743980998780,70.46482632,105.21,105.16,79.97412632]
[1743980998992,15.66,105.22,105.16,9.5093]
[1743980999222,70.46482632,105.21,105.16,70.46482632]
[1743980999384,15.66,105.22,105.18,70.46482632]
[1743980999585,15.66,105.22,105.19,70.46482632]
[1743981000017,15.66,105.22,105.18,70.46482632]
[1743981000590,15.66,105.22,105.15,33.3153]
[1743981000917,15.66,105.22,105.16,33.2825]
[1743981001092,15.66,105.22,105.18,70.46482632]
[1743981001295,70.46482632,105.25,105.19,70.46482632]
[1743981001509,70.46482632,105.24,105.19,70.46482632]
[1743981001709,70.46482632,105.23,105.16,9.5093]
[1743981002028,70.46482632,105.19,105.15,9.5398]
[1743981002185,15.58,105.21,105.16,70.46482632]
[1743981002382,86.04482632,105.21,105.16,70.46482632]
[1743981002685,70.46482632,105.2,105.15,0.03]
[1743981002883,15.58,105.21,105.16,70.46482632]
[1743981003124,15.58,105.21,105.17,70.46482632]
[1743981003919,15.58,105.21,105.18,70.46482632]
[1743981004105,79.96692632,105.24,105.19,70.46482632]
[1743981004418,70.46482632,105.22,105.17,70.46482632]
[1743981004622,70.46482632,105.2,105.15,0.03]
[1743981004791,70.46482632,105.2,105.15,70.49482632]
[1743981004980,70.46482632,105.21,105.15,80.00492632]
[1743981005186,70.46482632,105.21,105.15,0.03]
[1743981005386,70.46482632,105.2,105.15,80.00472632]
[1743981005583,70.46482632,105.19,105.15,0.03]
[1743981005830,70.46482632,105.18,105.15,0.03]
[1743981005999,70.46482632,105.16,105.15,0.03]
[1743981006199,70.46482632,105.16,105.1,9.5144]
[1743981006429,89.11447518,105.18,105.1,79.97922632]
[1743981006430,0.42648471,105.18,105.1,79.97922632]
[1743981006712,70.46482632,105.15,105.1,79.97922632]
[1743981006918,30.3342,105.19,105.11,70.46482632]
[1743981007122,9.5075,105.18,105.12,70.46482632]
[1743981007297,70.46482632,105.16,105.11,70.46482632]
[1743981007498,70.46482632,105.17,105.11,70.46482632]
[1743981007997,34.72324886,105.19,105.13,70.46482632]
[1743981008192,25.006,105.2,105.14,70.46482632]
[1743981008412,70.46482632,105.19,105.1,9.5144]
[1743981008587,48.7702,105.2,105.1,33.3012]
[1743981008783,70.46482632,105.17,105.12,70.46482632]
[1743981009188,70.46482632,105.16,105.1,0.03]
[1743981009388,70.46482632,105.16,105.1,80.00932632]
[1743981009612,18.64964886,105.17,105.1,0.03]
[1743981009816,70.46482632,105.14,105.1,0.03]
[1743981010191,0.14216157,105.14,105.1,0.03]
[1743981010391,70.46482632,105.12,105.1,0.03]
[1743981010891,70.46482632,105.14,105.1,0.03]
[1743981011090,81.2,105.16,105.11,70.46482632]
[1743981011410,9.5094,105.16,105.1,70.49482632]
[1743981011595,70.46482632,105.15,105.1,70.49482632]
[1743981011790,70.46482632,105.15,105.1,0.03]
[1743981011992,9.5094,105.16,105.1,0.03]
[1743981012206,9.5094,105.16,105.1,70.49482632]
[1743981012410,70.46482632,105.11,105.1,0.03]
[1743981012613,86.04482632,105.11,105.1,0.03]
[1743981012811,105.14095989,105.11,105.1,0.03]
[1743981012995,70.46482632,105.09,105.08,0.03]
[1743981013325,70.46482632,105.09,105.0,67.4]
[1743981013326,7.594,105.08,105.0,67.4]
[1743981013500,4543.194861,104.98,104.95,14.64992255]
[1743981013832,4559.094861,104.98,104.95,14.64992255]
[1743981014194,70.46482632,104.96,104.95,14.64992255]
[1743981014619,28.17624886,104.97,104.95,14.64992255]
[1743981014797,70.46482632,104.96,104.95,14.64992255]
[1743981014993,89.11447518,104.96,104.95,14.64992255]
[1743981015198,70.46482632,104.96,104.95,14.64992255]
[1743981015423,19.07613357,104.96,104.95,14.64992255]
[1743981015602,18.64964886,104.96,104.95,14.64992255]
[1743981015803,16.86,104.96,104.95,14.64992255]
[1743981016023,16.86,104.96,104.9,80.28447122]
[1743981016192,87.32482632,104.96,104.91,70.46482632]
[1743981016393,70.46482632,104.93,104.9,0.2872449]
[1743981016617,16.86,104.96,104.9,9.8199449]
[1743981016799,4543.194861,104.98,104.9,33.6521449]
[1743981017203,70.46482632,104.96,104.9,9.8199449]
[1743981017417,70.46482632,104.96,104.9,9.3199449]
[1743981017631,4543.194861,104.98,104.9,33.1521449]
[1743981017813,70.46482632,104.94,104.9,9.3199449]
[1743981018019,17.34,104.95,104.89,14.64992255]
[1743981018323,70.46482632,104.9,104.89,14.64992255]
[1743981018622,89.11447518,104.9,104.89,14.64992255]
[1743981019000,306.6528,104.91,104.89,14.64992255]
[1743981019200,18.64964886,104.9,104.89,14.64992255]
[1743981019501,44.64964886,104.86,104.79,0.03]
[1743981019815,89.11447518,104.84,104.79,0.03]
[1743981020022,18.64964886,104.82,104.79,0.03]
[1743981020210,70.46482632,104.82,104.79,0.03]
[1743981020402,18.16,104.81,104.79,0.03]
[1743981020597,70.46482632,104.8,104.66,20.95852255]
[1743981020913,100.00492632,104.82,104.7,0.5]
[1743981021113,88.88482632,104.82,104.72,0.5]
[1743981021321,88.88482632,104.82,104.7,70.46482632]
[1743981021322,18.42,104.82,104.74,26.0]
[1743981021525,18.42,104.82,104.73,26.0]
[1743981021526,18.42,104.82,104.68,0.5]
[1743981021706,38.79181043,104.81,104.71,0.5]
[1743981021903,18.64964886,104.81,104.7,70.46482632]
[1743981022127,326.7792,104.83,104.76,70.46482632]
[1743981022128,297.24,104.83,104.76,70.46482632]
[1743981022303,29.5339,104.89,104.77,30.1878]
[1743981022508,18.86,104.88,104.78,9.5438]
[1743981022706,18.86,104.88,104.79,0.28432314]
[1743981022904,18.86,104.88,104.82,0.28432314]
[1743981023105,18.86,104.88,104.86,70.46482632]
[1743981023322,70.46482632,104.92,104.85,26.0]
[1743981023625,19.06,104.93,104.85,26.0]
[1743981023825,19.06,104.93,104.86,0.28432314]
[1743981024031,70.46482632,104.91,104.84,0.28432314]
[1743981024225,19.06,104.93,104.87,70.46482632]
[1743981024412,18.64964886,104.92,104.84,23.8447]
[1743981024608,18.64964886,104.92,104.84,33.383]
[1743981024810,24.51540952,104.94,104.89,70.46482632]
[1743981025139,70.46482632,104.92,104.84,33.383]
[1743981025313,70.46482632,104.89,104.84,70.46482632]
[1743981025634,70.46482632,104.89,104.83,70.46482632]
[1743981025930,18.64964886,104.9,104.84,70.46482632]
[1743981026244,18.64964886,104.93,104.87,70.46482632]
[1743981026411,43.91540952,104.94,104.9,9.5328]
[1743981026808,24.51540952,104.94,104.9,9.81712314]
[1743981027026,24.51540952,104.94,104.93,70.74914946]
[1743981027229,24.51540952,104.94,104.91,0.42648471]
[1743981027547,24.51540952,104.94,104.88,9.5347]
[1743981027703,24.51540952,104.94,104.9,70.46482632]
[1743981027906,24.51540952,104.94,104.91,70.46482632]
[1743981028107,24.51540952,104.94,104.89,0.28432314]
[1743981028343,24.51540952,104.94,104.91,70.46482632]
[1743981028544,24.51540952,104.94,104.93,70.46482632]
[1743981028721,24.51540952,104.94,104.92,0.14216157]
[1743981029040,9.52e-06,104.94,104.93,141.35613735]
[1743981029243,9.52e-06,104.94,104.93,70.74914946]
[1743981029448,9.52e-06,104.94,104.93,160.00578621]
[1743981029623,4543.194861,104.98,104.97,0.28432314]
[1743981029930,4543.194861,104.98,104.94,70.60698789]
[1743981030111,4478.997061,104.98,104.97,71.39131103]
[1743981030306,4421.676661,104.98,104.97,70.89131103]
[1743981030524,4421.676661,104.98,104.97,80.27564946]
[1743981030830,4421.676661,104.98,104.97,9.5265]
[1743981031020,4421.676661,104.98,104.94,26.0]
[1743981031216,4421.676661,104.98,104.95,70.46482632]
[1743981031435,4421.676661,104.98,104.95,0.14216157]
[1743981031733,4373.157261,104.98,104.97,70.74914946]
[1743981031921,3907.08780063,104.98,104.97,186.56008621]
[1743981032124,3907.08780063,104.98,104.97,188.30208052]
[1743981032125,3770.72930063,104.98,104.97,188.30208052]
[1743981032433,3701.33050063,104.98,104.97,197.82858052]
[1743981032741,3602.05890063,104.98,104.97,191.45428052]
[1743981032911,3366.13410542,104.98,104.97,191.45428052]
[1743981033237,3251.15890542,104.98,104.97,120.9894542]
[1743981033850,3181.65150542,104.98,104.97,120.9894542]
[1743981034149,2995.58680542,104.98,104.97,120.9894542]
[1743981034429,2639.93234506,104.98,104.97,191.45428052]
[1743981034843,2560.22594506,104.98,104.97,191.45428052]
[1743981035168,2304.34604506,104.98,104.97,191.45428052]
[1743981035323,2228.24574506,104.98,104.97,191.45428052]
[1743981036015,2179.52024505,104.98,104.97,191.45428052]
[1743981036211,2179.09394505,104.98,104.97,191.45428052]
[1743981036437,2155.27206767,104.98,104.97,171.13211895]
[1743981036650,2155.27206767,104.98,104.97,100.52513106]
[1743981036956,2155.27206767,104.98,104.97,98.78313675]
[1743981037246,2155.27206767,104.98,104.9,19.74]
[1743981037426,70.46482632,104.97,104.9,1.74315674]
[1743981037634,70.46482632,104.97,104.92,70.46482632]
[1743981037811,2155.27206767,104.98,104.92,70.46482632]
[1743981038011,2225.73689399,104.98,104.93,70.46482632]
[1743981038211,6.443,104.96,104.82,89.6203032]
[1743981038508,6.443,104.96,104.9,70.46482632]
[1743981038710,6.443,104.96,104.89,0.5]
[1743981038936,6.443,104.96,104.89,18.64964886]
[1743981039244,6.443,104.96,104.94,70.46482632]
[1743981039543,2155.27206767,104.98,104.95,70.46482632]
[1743981039747,2155.27206767,104.98,104.93,26.0]
[1743981040044,2155.27206767,104.98,104.92,0.28432314]
[1743981040045,70.46482632,104.97,104.9,18.64964886]
[1743981040245,70.46482632,104.95,104.89,1.74332293]
[1743981040417,6.5900966,104.97,104.87,0.14216157]
[1743981040613,1.5692,104.94,104.88,70.46482632]
[1743981040817,1.5692,104.94,104.91,70.46482632]
[1743981041120,6.5900966,104.93,104.92,70.46482632]
[1743981041752,6.5900966,104.93,104.92,96.46482632]
[1743981041920,6.5900966,104.93,104.92,115.54095989]
[1743981042125,6.5900966,104.93,104.92,116.04095989]
[1743981042332,6.5900966,104.93,104.92,186.50578621]
[1743981042536,2155.27206767,104.98,104.97,26.0]
[1743981042739,2155.27206767,104.98,104.97,96.46482632]
[1743981043140,2225.73689399,104.98,104.92,0.14216157]
[1743981043339,70.46482632,104.97,104.92,96.46482632]
[1743981043550,70.46482632,104.96,104.91,70.46482632]
[1743981043752,3.32076057,104.96,104.92,70.46482632]
[1743981044065,3.32076057,104.96,104.92,26.0]
[1743981044257,3.32076057,104.96,104.93,70.46482632]
[1743981044455,3.32076057,104.96,104.92,26.0]
[1743981044632,2155.27206767,104.98,104.93,70.46482632]
[1743981044946,70.46482632,104.97,104.9,0.14216157]
[1743981045169,70.46482632,104.96,104.9,70.46482632]
[1743981045354,2164.79776767,104.98,104.91,70.46482632]
[1743981045355,2155.27206767,104.98,104.91,70.46482632]
[1743981045657,2155.27206767,104.98,104.93,70.46482632]
[1743981045864,2155.27206767,104.98,104.91,19.07613357]
[1743981046166,2155.27206767,104.98,104.94,70.46482632]
[1743981046341,2155.27206767,104.98,104.95,70.46482632]
[1743981046550,2155.27206767,104.98,104.96,70.46482632]
[1743981046771,2155.27206767,104.98,104.95,70.46482632]
[1743981047064,2155.27206767,104.98,104.96,70.46482632]
[1743981047243,2155.27206767,104.98,104.95,70.46482632]
[1743981047440,2155.27206767,104.98,104.91,26.14216157]
[1743981047649,2155.27206767,104.98,104.94,70.46482632]
[1743981047849,2155.27206767,104.98,104.95,70.46482632]
[1743981048059,2155.27206767,104.98,104.94,70.46482632]
[1743981048240,2155.27206767,104.98,104.95,70.46482632]
[1743981048647,2155.27206767,104.98,104.94,70.46482632]
[1743981048864,2155.27206767,104.98,104.95,70.46482632]
[1743981049073,2155.27206767,104.98,104.94,70.46482632]
[1743981049575,2155.27206767,104.98,104.95,70.46482632]
[1743981049871,2155.27206767,104.98,104.92,19.07613357]
[1743981050037,2155.27206767,104.98,104.95,70.46482632]
[1743981050660,2155.27206767,104.98,104.92,19.07613357]
[1743981050863,2155.27206767,104.98,104.91,0.14216157]
[1743981051168,2155.27206767,104.98,104.94,70.46482632]
[1743981051876,2225.73689399,104.98,104.93,70.46482632]
[1743981052078,2155.27206767,104.98,104.93,70.46482632]
[1743981052272,2155.27206767,104.98,104.97,70.74914946]
[1743981052480,2155.27206767,104.98,104.97,89.54095989]
[1743981052981,2155.27206767,104.98,104.97,94.42384152]
[1743981053479,1866.03180731,104.98,104.97,212.94342978]
[1743981053685,1671.99263799,104.98,104.97,167.13066215]
[1743981053885,1425.25194489,104.98,104.97,380.8042976]
[1743981054171,996.83645524,104.98,104.97,437.9742976]
[1743981054377,680.14000821,104.98,104.97,557.01912392]
[1743981054576,573.6671249,104.98,104.97,529.22617791]
[1743981054873,461.91297776,104.98,104.97,482.12121597]
[1743981055173,260.75463914,104.98,104.97,482.12121597]
[1743981055372,246.51463914,104.98,104.97,423.92597791]
[1743981055575,224.27463914,104.98,104.97,423.92597791]
[1743981055739,115.853692,104.98,104.97,376.37121597]
[1743981055947,108.733692,104.98,104.97,239.22141597]
[1743981056141,2.1232,105.03,105.01,0.64216157]
[1743981056468,2.1232,105.03,105.02,90.04095989]
[1743981056639,2.1232,105.03,105.02,72.9903144]
[1743981056840,2.1232,105.03,105.02,28.02548808]
[1743981057155,2.1232,105.03,104.97,76.97363545]
[1743981057156,72.58802632,105.03,104.97,70.46482632]
[1743981057352,72.58802632,105.03,104.97,26.0]
[1743981057353,2.1232,105.03,104.97,26.0]
[1743981057570,70.46482632,105.0,104.95,0.14216157]
[1743981057767,70.46482632,104.98,104.91,19.7]
[1743981057975,13.6675,105.03,104.95,70.46482632]
[1743981058278,13.6675,105.03,104.96,70.46482632]
[1743981058461,13.6675,105.03,104.96,26.0]
[1743981058656,13.6675,105.03,104.96,70.46482632]
[1743981058864,13.6675,105.03,104.94,70.60698789]
[1743981059067,13.6675,105.03,104.98,26.0]
[1743981059272,13.6675,105.03,104.98,96.46482632]
[1743981059453,13.6675,105.03,104.99,70.46482632]
[1743981059655,13.6675,105.03,104.98,26.0]
[1743981059853,70.46482632,105.01,104.97,0.14216157]
[1743981060051,13.6675,105.03,104.96,0.14216157]
[1743981060257,70.46482632,105.02,104.97,70.46482632]
[1743981060450,70.46482632,105.0,104.96,0.42648471]
[1743981060658,70.46482632,104.99,104.95,1.74232627]
[1743981060872,70.46482632,104.97,104.93,0.14216157]
[1743981061051,13.6675,105.03,104.95,0.14216157]
[1743981061252,13.6675,105.03,104.97,26.0]
[1743981061520,13.6675,105.03,104.93,18.64964886]
[1743981061721,70.46482632,105.01,104.96,70.46482632]
[1743981062015,70.46482632,105.0,104.96,0.42648471]
[1743981062185,70.46482632,105.0,104.93,18.64964886]
[1743981062385,70.46482632,105.0,104.92,0.14216157]
[1743981062619,23.189,105.03,104.92,0.28432314]
[1743981062801,23.189,105.03,104.94,70.46482632]
[1743981063125,23.189,105.03,104.94,26.0]
[1743981063126,70.46482632,104.98,104.94,26.0]
[1743981063428,70.46482632,104.98,104.93,70.60698789]
[1743981063718,70.46482632,104.96,104.92,1.74282446]
[1743981063919,70.46482632,105.0,104.92,70.46482632]
[1743981064224,70.46482632,104.97,104.93,26.0]
[1743981064385,70.46482632,104.97,104.88,147.93846177]
[1743981064386,70.46482632,104.96,104.92,26.0]
[1743981064587,70.46482632,104.96,104.91,70.60698789]
[1743981064788,113.51714886,105.03,104.93,70.46482632]
[1743981065028,113.51714886,105.03,104.92,0.14216157]
[1743981065029,70.46482632,104.99,104.94,70.46482632]
[1743981065238,13.6675,105.03,104.96,70.46482632]
[1743981065394,70.46482632,105.02,104.97,70.46482632]
[1743981065721,70.46482632,105.01,104.96,70.46482632]
[1743981065923,70.46482632,105.0,104.9,5.18692048]
[1743981066218,23.1886,105.03,104.94,26.42648471]
[1743981066219,13.6675,105.03,104.94,26.42648471]
[1743981066402,70.46482632,105.0,104.94,26.42648471]
[1743981066599,13.6675,105.03,104.95,70.46482632]
[1743981066788,13.6675,105.03,104.94,26.42648471]
[1743981066789,13.6675,105.03,104.96,70.46482632]
[1743981066989,13.6675,105.03,104.99,26.0]
[1743981067195,84.13232632,105.03,104.98,70.46482632]
[1743981067423,70.46482632,105.02,104.98,26.0]
[1743981067815,70.46482632,105.01,104.98,26.0]
[1743981067995,70.46482632,105.0,104.98,26.0]
[1743981068319,70.46482632,104.99,104.94,0.14216157]
[1743981068528,23.1887,105.03,104.96,26.0]
[1743981068529,13.6675,105.03,104.96,26.0]
[1743981068727,23.1888,105.03,104.96,26.0]
[1743981068892,70.46482632,104.97,104.92,0.14216157]
[1743981069210,70.46482632,104.95,104.91,1.74299059]
[1743981069415,70.46482632,104.94,104.9,26.14216157]
[1743981069601,70.46482632,104.93,104.89,0.14216157]
[1743981069918,89.24482632,105.0,104.91,26.0]
[1743981070120,70.46482632,104.94,104.89,70.46482632]
[1743981070285,70.46482632,104.94,104.87,22.31964886]
[1743981070491,70.46482632,104.92,104.88,0.14216157]
[1743981070721,70.46482632,104.89,104.87,3.67]
[1743981071109,70.46482632,104.88,104.87,3.67]
[1743981071491,28.2501,104.93,104.87,3.67]
[1743981071825,10.9134,104.94,104.87,3.67]
[1743981072002,70.46482632,104.9,104.87,3.67]
[1743981072320,70.46482632,104.88,104.87,3.67]
[1743981072526,133.38027518,104.94,104.87,3.67]
[1743981072750,81.37822632,104.94,104.87,3.67]
[1743981072896,70.46482632,104.91,104.87,3.67]
[1743981073395,5.6944515,104.93,104.88,70.46482632]
[1743981073600,76.15927782,104.93,104.88,70.89131103]
[1743981073799,5.6944515,104.93,104.89,70.46482632]
[1743981074129,81.37822632,104.94,104.91,26.0]
[1743981074295,70.46482632,104.92,104.89,26.0]
[1743981074495,70.46482632,104.92,104.87,74.13482632]
[1743981074696,70.46482632,104.91,104.87,3.67]
[1743981074924,70.46482632,104.91,104.87,29.67]
[1743981075406,70.46482632,104.92,104.87,100.13482632]
[1743981075602,70.46482632,104.91,104.87,3.67]
[1743981075791,81.37822632,104.94,104.87,3.67]
[1743981075992,70.46482632,104.88,104.87,3.67]
[1743981077845,315.98,104.91,104.82,64.22482632]
[1743981078118,70.46482632,104.86,104.8,0.28432314]
[1743981078338,70.46482632,104.88,104.8,0.14216157]
[1743981078633,70.46482632,104.84,104.77,0.14216157]
[1743981078838,70.46482632,104.84,104.79,70.46482632]
[1743981079019,73.34992632,104.87,104.81,26.0]
[1743981079220,70.46482632,104.86,104.8,0.42648471]
[1743981079437,70.46482632,104.86,104.81,26.0]
[1743981079621,70.46482632,104.85,104.81,26.0]
[1743981079813,70.46482632,104.86,104.81,26.0]
[1743981080042,2.8851,104.87,104.81,96.46482632]
[1743981080273,70.46482632,104.86,104.81,96.46482632]
[1743981080423,2.8851,104.87,104.81,96.46482632]
[1743981080630,70.46482632,104.86,104.81,96.46482632]
[1743981081144,297.5,104.91,104.84,70.46482632]
[1743981081346,70.46482632,104.89,104.83,70.46482632]
[1743981081545,70.46482632,104.87,104.81,96.46482632]
[1743981081750,70.46482632,104.87,104.81,26.0]
[1743981082049,70.46482632,104.85,104.83,26.0]
[1743981082244,70.46482632,104.86,104.83,26.0]
[1743981082425,70.46482632,104.86,104.81,70.46482632]
[1743981082836,70.46482632,104.86,104.81,26.0]
[1743981083037,70.46482632,104.88,104.81,26.0]
[1743981083225,70.46482632,104.86,104.81,96.46482632]
[1743981083424,70.46482632,104.86,104.81,26.0]
[1743981083761,28.18264886,104.9,104.81,26.0]
[1743981084045,70.46482632,104.85,104.81,26.0]
[1743981084251,307.0321,104.91,104.81,26.0]
[1743981084414,70.46482632,104.86,104.81,26.0]
[1743981084618,70.46482632,104.86,104.81,96.46482632]
[1743981085116,70.46482632,104.85,104.79,0.14216157]
[1743981085343,70.46482632,104.83,104.79,0.14216157]
[1743981085541,70.46482632,104.83,104.78,26.0]
[1743981085749,30.3765,104.87,104.76,0.03]
[1743981085927,30.3765,104.87,104.78,70.46482632]
[1743981086126,30.3765,104.87,104.81,70.46482632]
[1743981086333,70.46482632,104.85,104.81,26.0]
[1743981086814,30.3765,104.87,104.8,26.0]
[1743981087016,70.46482632,104.85,104.8,26.0]
[1743981087232,82.76132632,104.87,104.82,70.46482632]
[1743981087428,70.46482632,104.86,104.81,0.42648471]
[1743981087949,12.2965,104.87,104.8,26.0]
[1743981088157,18.08,104.86,104.78,26.0]
[1743981088347,18.08,104.86,104.79,70.60698789]
[1743981088533,70.46482632,104.83,104.79,26.0]
[1743981088716,70.46482632,104.83,104.77,0.28432314]
[1743981088717,70.46482632,104.82,104.77,0.28432314]
[1743981088918,70.46482632,104.83,104.78,70.46482632]
[1743981089120,18.08,104.86,104.8,70.46482632]
[1743981089356,12.2965,104.87,104.83,70.46482632]
[1743981089855,70.46482632,104.88,104.83,70.46482632]
[1743981090152,70.46482632,104.89,104.83,0.28432314]
[1743981090465,70.46482632,104.88,104.82,26.14216157]
[1743981090751,70.46482632,104.87,104.82,96.60698789]
[1743981090921,70.46482632,104.86,104.82,26.0]
[1743981091123,70.46482632,104.84,104.79,96.46482632]
[1743981091325,70.46482632,104.88,104.78,70.46482632]
[1743981091528,70.46482632,104.84,104.79,70.46482632]
[1743981091823,70.46482632,104.86,104.8,26.28432314]
[1743981092025,81.2,104.9,104.81,70.89131103]
[1743981092228,81.2,104.9,104.82,70.46482632]
[1743981092539,327.5413,104.91,104.83,70.46482632]
[1743981092849,309.5613,104.91,104.81,19.07613357]
[1743981093027,70.46482632,104.9,104.85,96.46482632]
[1743981093356,70.46482632,104.9,104.85,26.0]
[1743981093541,319.0935,104.91,104.83,26.0]
[1743981093738,70.46482632,104.88,104.85,26.0]
[1743981094435,70.46482632,104.89,104.85,26.0]
[1743981094642,70.46482632,104.86,104.81,70.46482632]
[1743981095147,337.74294886,104.91,104.81,70.46482632]
[1743981095148,70.46482632,104.87,104.81,70.46482632]
[1743981095354,70.46482632,104.86,104.81,70.46482632]
[1743981095567,70.46482632,104.88,104.8,26.0]
[1743981095849,70.46482632,104.87,104.82,70.46482632]
[1743981096050,70.46482632,104.87,104.81,70.46482632]
[1743981096255,70.46482632,104.86,104.81,70.46482632]
[1743981096465,400.2936,104.91,104.82,70.46482632]
[1743981096628,70.46482632,104.87,104.81,70.46482632]
[1743981096961,70.46482632,104.85,104.8,96.46482632]
[1743981097163,70.46482632,104.85,104.8,26.0]
[1743981097363,9.5356,104.87,104.76,0.03]
[1743981097364,70.46482632,104.81,104.76,0.03]
[1743981097665,70.46482632,104.79,104.76,0.03]
[1743981097862,70.46482632,104.82,104.76,0.03]
[1743981097863,17.68,104.8,104.76,0.03]
[1743981098158,70.46482632,104.78,104.76,0.03]
[1743981098860,17.68,104.8,104.76,0.03]
[1743981099068,70.46482632,104.77,104.76,0.03]
[1743981099268,70.46482632,104.78,104.76,0.03]
[1743981100365,70.46482632,104.77,104.76,0.03]
[1743981100742,18.64964886,104.79,104.76,0.03]
[1743981100948,17.68,104.8,104.76,0.03]
[1743981101452,70.46482632,104.79,104.76,0.03]
[1743981101636,70.46482632,104.78,104.76,0.03]
[1743981101965,70.46482632,104.77,104.76,0.03]
[1743981102971,27.2221,104.8,104.76,0.03]
[1743981103156,70.46482632,104.77,104.76,0.03]
[1743981103549,17.68,104.8,104.76,0.03]
[1743981103759,70.46482632,104.78,104.76,0.03]
[1743981103948,17.68,104.8,104.76,0.03]
[1743981104150,88.14482632,104.8,104.76,0.03]
[1743981104365,70.46482632,104.79,104.76,0.03]
[1743981104559,17.68,104.8,104.76,0.03]
[1743981104777,70.46482632,104.81,104.76,0.03]
[1743981104960,70.46482632,104.81,104.76,70.49482632]
[1743981105163,70.46482632,104.8,104.76,0.03]